[Event "RUS-chT Women Rapid 2019"]
[Site "Sochi"]
[Date "2019.10.18"]
[Round "2.11"]
[White "Yakimova, Mariya"]
[Black "Vasilevich, Tatjana"]
[Result "1/2-1/2"]
[ECO "A64"]
[WhiteElo "2276"]
[BlackElo "2360"]
[Annotator "NA"]
[PlyCount "103"]
[EventDate "2019.10.18"]
[EventType "swiss"]
[EventCountry "RUS"]
[SourceTitle "playchess.com"]
[Source "ChessBase"]
[SourceQuality "1"]
[TimeControl "900+10"]

1. d4 {[%emt 0:00:00]} Nf6 {[%emt 0:00:00]} 2. c4 {[%emt 0:00:00]} e6 {[%emt 0:00:00]} 3. g3 {[%emt 0:00:00]} c5 {[%emt 0:00:04]} 4. d5 {[%emt 0:00:00]} exd5 {[%emt 0:00:16]} 5. cxd5 {[%emt 0:00:00]} d6 {[%emt 0:00:06]} 6. Nc3 {[%emt 0:00:00]} g6 {[%emt 0:00:02]} 7. Nf3 {[%emt 0:00:00]} Bg7 {[%emt 0:00:01]} 8. Bg2 {[%emt 0:00:01]} O-O {[%emt 0:00:07]} 9. O-O {[%emt 0:00:02]} a6 {[%emt 0:00:22]} 10. a4 {[%emt 0:00:01]} Re8 {[%emt 0:00:02]} 11. Nd2 {[%emt 0:00:02]} Nbd7 {[%emt 0:00:10]} 12. Nc4 {[%emt 0:00:45]} Ne5 {[%emt 0:00:17]} 13. Nxe5 {[%emt 0:00:05]} Rxe5 {[%emt 0:00:10]} 14. e4 {[%emt 0:00:20]} Re8 {[%emt 0:00:20]} 15. Bg5 {[%emt 0:00:19]} h6 {[%emt 0:00:20]} 16. Bd2 {[%emt 0:01:23]} Rb8 {[%emt 0:00:41]} 17. a5 {[%emt 0:00:45]} b5 {[%emt 0:01:20]} 18. axb6 {[%emt 0:00:02]} Qxb6 {[%emt 0:01:26]} 19. Na4 {[%emt 0:00:07]} Qc7 {[%emt 0:00:41]} 20. Qc2 {[%emt 0:00:47]} Bd7 {[%emt 0:01:38]} 21. Bc3 {[%emt 0:00:50]} Bb5 {[%emt 0:00:38]} 22. Rfe1 {[%emt 0:00:01]} Ng4 {[%emt 0:01:52]} 23. Bxg7 {[%emt 0:01:56]} Kxg7 {[%emt 0:00:01]} 24. f4 {[%emt 0:02:17]} Qa7 {[%emt 0:01:36]} 25. h3 {[%emt 0:05:34]} c4+ {[%emt 0:00:09]} 26. Kh1 {[%emt 0:00:06]} Nf2+ {[%emt 0:00:20]} 27. Kh2 {[%emt 0:00:01]} Nd3 {[%emt 0:00:07]} 28. Reb1 {[%emt 0:00:01]} h5 {[%emt 0:02:23]} 29. h4 {[%emt 0:00:26]} Kg8 {[%emt 0:02:53]} 30. Nc3 {[%emt 0:00:06]} Bd7 {[%emt 0:00:34]} 31. Nd1 {[%emt 0:01:33]} Rec8 {[%emt 0:00:16]} 32. Qd2 {[%emt 0:00:23]} Rb3 {[%emt 0:00:25]} 33. Ra5 {[%emt 0:01:28]} Qb6 {[%emt 0:00:10]} 34. Rba1 {[%emt 0:00:10]} Bb5 {[%emt 0:00:11]} 35. R1a2 {[%emt 0:00:16]} Qd4 {[%emt 0:00:12]} 36. f5 {[%emt 0:00:15]} Kg7 {[%emt 0:00:12]} 37. fxg6 {[%emt 0:00:08]} fxg6 {[%emt 0:00:01]} 38. Qg5 {[%emt 0:00:19]} Qe5 {[%emt 0:00:06]} 39. Nc3 {[%emt 0:00:34]} Qxg5 {[%emt 0:00:15]} 40. hxg5 {[%emt 0:00:01]} Nxb2 {[%emt 0:00:23]} 41. Nxb5 {[%emt 0:00:05]} axb5 {[%emt 0:00:05]} 42. Ra7+ {[%emt 0:00:01]} Kg8 {[%emt 0:00:08]} 43. R2a6 {[%emt 0:00:01]} Nd3 {[%emt 0:00:56]} 44. Re7 {[%emt 0:00:28]} c3 {[%emt 0:00:10]} 45. Raa7 {[%emt 0:00:10]} Ne5 {[%emt 0:00:02]} 46. Rg7+ {[%emt 0:00:06]} Kh8 {[%emt 0:00:03]} 47. Rh7+ {[%emt 0:00:02]} Kg8 {[%emt 0:00:01]} 48. Rhg7+ {[%emt 0:00:03]} Kf8 {[%emt 0:00:03]} 49. Rh7 {[%emt 0:00:02]} Kg8 {[%emt 0:00:05]} 50. Rhg7+ {[%emt 0:00:01]} Kh8 {[%emt 0:00:12]} 51. Rh7+ {[%emt 0:00:01]} Kg8 {[%emt 0:00:05]} 52. Rhg7+ {[%emt 0:00:01]} 1/2-1/2

[Event "RUS-chT Women Rapid 2019"]
[Site "Sochi"]
[Date "2019.10.18"]
[Round "2.12"]
[White "Illina, Natalia"]
[Black "Markelova, Lubov"]
[Result "1-0"]
[ECO "C07"]
[WhiteElo "2081"]
[BlackElo "2198"]
[Annotator "NA"]
[PlyCount "111"]
[EventDate "2019.10.18"]
[EventType "swiss"]
[EventCountry "RUS"]
[SourceTitle "playchess.com"]
[Source "ChessBase"]
[SourceQuality "1"]
[TimeControl "900+10"]

1. e4 {[%emt 0:00:00]} e6 {[%emt 0:00:00]} 2. d4 {[%emt 0:00:00]} d5 {[%emt 0:00:00]} 3. Nd2 {[%emt 0:00:00]} c5 {[%emt 0:00:00]} 4. exd5 {[%emt 0:00:00]} Qxd5 {[%emt 0:00:00]} 5. Ngf3 {[%emt 0:00:00]} cxd4 {[%emt 0:00:03]} 6. Bc4 {[%emt 0:00:00]} Qd6 {[%emt 0:00:01]} 7. O-O {[%emt 0:00:01]} Nf6 {[%emt 0:00:03]} 8. Nb3 {[%emt 0:00:01]} Nc6 {[%emt 0:00:02]} 9. Nbxd4 {[%emt 0:00:02]} Nxd4 {[%emt 0:00:01]} 10. Nxd4 {[%emt 0:00:01]} a6 {[%emt 0:00:02]} 11. Re1 {[%emt 0:00:01]} Qc7 {[%emt 0:00:12]} 12. Bb3 {[%emt 0:01:25]} Bd6 {[%emt 0:02:54]} 13. Nf5 {[%emt 0:01:44]} Bxh2+ {[%emt 0:03:07]} 14. Kh1 {[%emt 0:00:01]} h5 {[%emt 0:04:24]} 15. Nxg7+ {[%emt 0:02:40]} Kf8 {[%emt 0:00:13]} 16. Qd4 {[%emt 0:01:20]} e5 {[%emt 0:03:00]} 17. Qb4+ {[%emt 0:02:27]} Kxg7 {[%emt 0:00:12]} 18. Kxh2 {[%emt 0:00:01]} Ng4+ {[%emt 0:02:00]} 19. Kg1 {[%emt 0:00:05]} Bf5 {[%emt 0:00:17]} 20. Qc3 {[%emt 0:01:12]} Qxc3 {[%emt 0:00:22]} 21. bxc3 {[%emt 0:00:01]} Rhe8 {[%emt 0:00:13]} 22. f3 {[%emt 0:00:20]} Nf6 {[%emt 0:00:06]} 23. Ba3 {[%emt 0:00:41]} b5 {[%emt 0:00:50]} 24. Bd6 {[%emt 0:01:13]} e4 {[%emt 0:00:05]} 25. Bc5 {[%emt 0:01:05]} Kg6 {[%emt 0:00:35]} 26. a4 {[%emt 0:00:53]} exf3 {[%emt 0:00:24]} 27. gxf3 {[%emt 0:00:06]} bxa4 {[%emt 0:00:09]} 28. Bxa4 {[%emt 0:00:03]} Rxe1+ 29. Rxe1 {[%emt 0:00:01]} Be6 {[%emt 0:00:09]} 30. Kf2 {[%emt 0:00:36]} h4 {[%emt 0:00:02]} 31. Rg1+ {[%emt 0:00:24]} Kf5 {[%emt 0:00:20]} 32. Be3 {[%emt 0:00:01]} Nd5 {[%emt 0:00:11]} 33. Bd2 {[%emt 0:01:22]} Rh8 {[%emt 0:00:13]} 34. Rg5+ {[%emt 0:00:43]} Kf6 {[%emt 0:00:02]} 35. Bc6 {[%emt 0:01:54]} Ne7 {[%emt 0:00:07]} 36. Be4 {[%emt 0:00:11]} Ng6 {[%emt 0:00:20]} 37. c4 {[%emt 0:00:08]} h3 {[%emt 0:00:15]} 38. Rxg6+ {[%emt 0:00:07]} fxg6 {[%emt 0:00:03]} 39. Bc3+ {[%emt 0:00:01]} Kg5 {[%emt 0:00:02]} 40. Bxh8 {[%emt 0:00:02]} Bxc4 {[%emt 0:00:11]} 41. Kg3 {[%emt 0:00:03]} Be6 {[%emt 0:00:08]} 42. Bg7 {[%emt 0:00:01]} Kh5 {[%emt 0:00:23]} 43. f4 {[%emt 0:00:14]} g5 {[%emt 0:00:05]} 44. f5 {[%emt 0:00:01]} Bc4 {[%emt 0:00:13]} 45. Bf3+ {[%emt 0:00:21]} g4 {[%emt 0:00:04]} 46. Bxg4+ {[%emt 0:00:08]} Kg5 {[%emt 0:00:02]} 47. Bxh3 {[%emt 0:00:10]} a5 {[%emt 0:00:01]} 48. Ba1 {[%emt 0:00:11]} a4 {[%emt 0:00:01]} 49. Kf3 {[%emt 0:00:06]} Bd5+ {[%emt 0:00:06]} 50. Ke3 {[%emt 0:00:02]} Kh4 {[%emt 0:00:08]} 51. Bf1 {[%emt 0:00:03]} Kg5 {[%emt 0:00:01]} 52. Bd3 {[%emt 0:00:02]} a3 {[%emt 0:00:02]} 53. Kd4 {[%emt 0:00:02]} Bf7 {[%emt 0:00:05]} 54. c4 {[%emt 0:00:09]} Kf6 {[%emt 0:00:06]} 55. c5 {[%emt 0:00:03]} Ke7 {[%emt 0:00:01]} 56. Ke5 {[%emt 0:00:05]} 1-0

[Event "RUS-chT Women Rapid 2019"]
[Site "Sochi"]
[Date "2019.10.18"]
[Round "3.1"]
[White "Lysenko, Margarita"]
[Black "Bodnaruk, Anastasia"]
[Result "1-0"]
[ECO "D70"]
[WhiteElo "2243"]
[BlackElo "2419"]
[Annotator "NA"]
[PlyCount "161"]
[EventDate "2019.10.18"]
[EventType "swiss"]
[EventCountry "RUS"]
[SourceTitle "playchess.com"]
[Source "ChessBase"]
[SourceQuality "1"]
[TimeControl "900+10"]

1. d4 {[%emt 0:00:00]} Nf6 {[%emt 0:00:00]} 2. c4 {[%emt 0:00:00]} g6 {[%emt 0:00:00]} 3. Nf3 {[%emt 0:00:00]} Bg7 {[%emt 0:00:00]} 4. g3 {[%emt 0:00:00]} O-O {[%emt 0:00:14]} 5. Bg2 {[%emt 0:00:02]} c6 {[%emt 0:00:13]} 6. O-O {[%emt 0:00:13]} d5 {[%emt 0:00:01]} 7. Qb3 {[%emt 0:00:07]} a5 {[%emt 0:00:11]} 8. cxd5 {[%emt 0:01:15]} a4 {[%emt 0:00:10]} 9. Qd1 {[%emt 0:00:39]} cxd5 {[%emt 0:00:02]} 10. Nc3 {[%emt 0:00:03]} Ne4 {[%emt 0:00:18]} 11. Nd2 {[%emt 0:01:27]} Nxc3 {[%emt 0:05:00]} 12. bxc3 {[%emt 0:00:03]} Nc6 {[%emt 0:00:01]} 13. e4 {[%emt 0:01:54]} Be6 {[%emt 0:00:16]} 14. Ba3 {[%emt 0:04:39]} Qa5 {[%emt 0:02:20]} 15. exd5 {[%emt 0:03:44]} Bxd5 {[%emt 0:00:05]} 16. Bxd5 {[%emt 0:00:05]} Qxd5 {[%emt 0:00:02]} 17. Qf3 {[%emt 0:00:05]} Qa5 {[%emt 0:03:04]} 18. Ne4 {[%emt 0:00:51]} b6 {[%emt 0:01:07]} 19. Rab1 {[%emt 0:00:12]} Rac8 {[%emt 0:00:51]} 20. Qd3 {[%emt 0:01:06]} Qd5 {[%emt 0:00:43]} 21. Qe2 {[%emt 0:00:37]} Na5 {[%emt 0:00:48]} 22. Rb5 {[%emt 0:00:09]} Qd7 {[%emt 0:01:04]} 23. Rfb1 {[%emt 0:00:38]} Nc4 {[%emt 0:00:12]} 24. Bc1 {[%emt 0:00:05]} Rfe8 {[%emt 0:01:13]} 25. R5b4 {[%emt 0:00:27]} Qd5 {[%emt 0:00:32]} 26. Rxa4 {[%emt 0:00:35]} e5 {[%emt 0:00:01]} 27. Qf3 {[%emt 0:00:02]} Qc6 {[%emt 0:00:28]} 28. Ra7 {[%emt 0:00:08]} f5 {[%emt 0:00:14]} 29. Ng5 {[%emt 0:00:14]} e4 {[%emt 0:00:20]} 30. Qf4 {[%emt 0:00:20]} Nd6 {[%emt 0:00:10]} 31. Qh4 {[%emt 0:00:08]} h6 {[%emt 0:00:04]} 32. Nh3 {[%emt 0:00:09]} Nf7 {[%emt 0:00:04]} 33. Bd2 {[%emt 0:00:16]} Ra8 {[%emt 0:00:21]} 34. Rxa8 {[%emt 0:00:11]} Rxa8 {[%emt 0:00:02]} 35. Rb2 {[%emt 0:00:12]} Bf6 {[%emt 0:00:08]} 36. Qf4 {[%emt 0:00:02]} Qc4 {[%emt 0:00:10]} 37. Rxb6 {[%emt 0:00:09]} Kg7 {[%emt 0:00:19]} 38. Rb2 {[%emt 0:00:17]} Rxa2 {[%emt 0:00:10]} 39. Rxa2 {[%emt 0:00:02]} Qxa2 {[%emt 0:00:01]} 40. Qe3 {[%emt 0:00:04]} Ng5 {[%emt 0:00:07]} 41. Kg2 {[%emt 0:00:14]} Nf7 {[%emt 0:00:31]} 42. Nf4 {[%emt 0:00:11]} Nd6 {[%emt 0:00:06]} 43. Nh3 {[%emt 0:00:18]} g5 {[%emt 0:00:03]} 44. Qe1 {[%emt 0:00:06]} Nc4 {[%emt 0:00:08]} 45. Be3 {[%emt 0:00:10]} Kg6 {[%emt 0:00:18]} 46. Ng1 {[%emt 0:00:08]} Be7 {[%emt 0:00:10]} 47. Ne2 {[%emt 0:00:20]} Bd6 {[%emt 0:00:01]} 48. Ng1 {[%emt 0:00:02]} Qc2 {[%emt 0:00:15]} 49. Qc1 {[%emt 0:00:11]} Qa2 {[%emt 0:00:13]} 50. Qe1 {[%emt 0:00:12]} Kg7 {[%emt 0:00:05]} 51. Nh3 {[%emt 0:00:12]} Qc2 {[%emt 0:00:12]} 52. Qc1 {[%emt 0:00:11]} Qd3 {[%emt 0:00:16]} 53. Ng1 {[%emt 0:00:04]} Ba3 {[%emt 0:00:05]} 54. Qe1 {[%emt 0:00:07]} Bb2 {[%emt 0:00:02]} 55. Qe2 {[%emt 0:00:22]} Bxc3 {[%emt 0:00:12]} 56. h4 {[%emt 0:00:07]} Kg6 {[%emt 0:00:14]} 57. h5+ {[%emt 0:00:05]} Kf6 {[%emt 0:00:05]} 58. Qa2 {[%emt 0:00:16]} Nxe3+ {[%emt 0:00:16]} 59. fxe3 {[%emt 0:00:03]} Qd2+ {[%emt 0:00:02]} 60. Qxd2 {[%emt 0:00:01]} Bxd2 {[%emt 0:00:00]} 61. Kf2 {[%emt 0:00:02]} Ke6 {[%emt 0:00:23]} 62. Ke2 {[%emt 0:00:12]} Bb4 {[%emt 0:00:02]} 63. Nh3 {[%emt 0:00:18]} Bd6 {[%emt 0:00:13]} 64. Kf2 {[%emt 0:00:02]} Kd5 {[%emt 0:00:09]} 65. Ng1 {[%emt 0:00:21]} Kc4 {[%emt 0:00:02]} 66. Ne2 {[%emt 0:00:23]} Ba3 {[%emt 0:00:05]} 67. Ng1 {[%emt 0:00:06]} Kd3 {[%emt 0:00:01]} 68. Ne2 {[%emt 0:00:08]} Bb4 {[%emt 0:00:24]} 69. g4 {[%emt 0:00:14]} fxg4 {[%emt 0:00:36]} 70. Ng3 {[%emt 0:00:03]} Bd2 {[%emt 0:00:10]} 71. Nf5 {[%emt 0:00:02]} Bc1 {[%emt 0:00:12]} 72. d5 {[%emt 0:00:02]} Bb2 {[%emt 0:00:09]} 73. d6 {[%emt 0:00:03]} Bf6 {[%emt 0:00:02]} 74. d7 {[%emt 0:00:19]} Bd8 {[%emt 0:00:16]} 75. Nxh6 {[%emt 0:00:09]} g3+ {[%emt 0:00:02]} 76. Kxg3 {[%emt 0:00:15]} Kxe3 {[%emt 0:00:01]} 77. Nf7 {[%emt 0:00:08]} Bc7+ {[%emt 0:00:02]} 78. Kg2 {[%emt 0:00:02]} Kf4 {[%emt 0:00:37]} 79. h6 {[%emt 0:00:12]} e3 {[%emt 0:00:03]} 80. h7 {[%emt 0:00:05]} e2 {[%emt 0:00:09]} 81. Kf2 {[%emt 0:00:02]} 1-0

[Event "RUS-chT Women Rapid 2019"]
[Site "Sochi"]
[Date "2019.10.18"]
[Round "3.2"]
[White "Ovod, Evgenija"]
[Black "Sudakova, Irina"]
[Result "1-0"]
[ECO "C42"]
[WhiteElo "2347"]
[BlackElo "2288"]
[Annotator "NA"]
[PlyCount "75"]
[EventDate "2019.10.18"]
[EventType "swiss"]
[EventCountry "RUS"]
[SourceTitle "playchess.com"]
[Source "ChessBase"]
[SourceQuality "1"]
[TimeControl "900+10"]

1. e4 {[%emt 0:00:00]} e5 {[%emt 0:00:00]} 2. Nf3 {[%emt 0:00:00]} Nf6 {[%emt 0:00:00]} 3. Nxe5 {[%emt 0:00:25]} d6 {[%emt 0:00:00]} 4. Nf3 {[%emt 0:00:06]} Nxe4 {[%emt 0:00:03]} 5. Nc3 {[%emt 0:00:04]} Nf6 {[%emt 0:00:04]} 6. d4 {[%emt 0:00:06]} d5 {[%emt 0:00:04]} 7. Bd3 {[%emt 0:00:22]} Be7 {[%emt 0:00:23]} 8. h3 {[%emt 0:00:52]} c6 {[%emt 0:01:12]} 9. Ne2 {[%emt 0:00:42]} Na6 {[%emt 0:00:41]} 10. c3 {[%emt 0:00:05]} Nc7 {[%emt 0:00:12]} 11. Ne5 {[%emt 0:00:50]} Ne4 {[%emt 0:02:58]} 12. O-O {[%emt 0:00:58]} f6 {[%emt 0:00:33]} 13. Nc4 {[%emt 0:01:29]} Be6 {[%emt 0:02:21]} 14. Ne3 {[%emt 0:00:09]} Qd7 {[%emt 0:00:41]} 15. Qc2 {[%emt 0:01:55]} f5 {[%emt 0:00:48]} 16. f3 {[%emt 0:00:58]} Nd6 {[%emt 0:00:17]} 17. Nf4 {[%emt 0:00:06]} Rf8 {[%emt 0:03:23]} 18. Nxe6 {[%emt 0:01:00]} Qxe6 {[%emt 0:00:15]} 19. Bd2 {[%emt 0:00:14]} O-O-O {[%emt 0:01:00]} 20. Rae1 {[%emt 0:00:47]} Bh4 {[%emt 0:00:26]} 21. Nxf5 {[%emt 0:01:46]} Bxe1 {[%emt 0:00:31]} 22. Rxe1 {[%emt 0:00:02]} Qf6 {[%emt 0:01:00]} 23. Ne7+ {[%emt 0:00:12]} Kb8 {[%emt 0:00:23]} 24. Bxh7 {[%emt 0:00:03]} Rfe8 {[%emt 0:00:39]} 25. Ng6 {[%emt 0:00:11]} Ne6 {[%emt 0:00:54]} 26. Ne5 {[%emt 0:00:15]} Nc4 {[%emt 0:00:07]} 27. Bg6 {[%emt 0:02:01]} Rf8 {[%emt 0:00:15]} 28. Ng4 {[%emt 0:00:39]} Qe7 {[%emt 0:00:15]} 29. Bc1 {[%emt 0:00:45]} Qd6 {[%emt 0:00:05]} 30. b3 {[%emt 0:00:32]} Nb6 {[%emt 0:00:01]} 31. Ne5 {[%emt 0:00:17]} Qc7 {[%emt 0:00:09]} 32. Bf5 {[%emt 0:00:57]} Rf6 {[%emt 0:00:01]} 33. Ng4 {[%emt 0:01:22]} Qg3 {[%emt 0:00:12]} 34. Re5 {[%emt 0:00:11]} Nd7 {[%emt 0:00:31]} 35. Re2 {[%emt 0:00:17]} Nf4 {[%emt 0:00:26]} 36. Bxf4+ {[%emt 0:00:10]} Qxf4 {[%emt 0:00:10]} 37. Bxd7 {[%emt 0:00:10]} Rxd7 {[%emt 0:00:10]} 38. Nxf6 {[%emt 0:00:10]} 1-0

[Event "RUS-chT Women Rapid 2019"]
[Site "Sochi"]
[Date "2019.10.18"]
[Round "3.3"]
[White "Lukina, Aleksandra"]
[Black "Belenkaya, Dina"]
[Result "1/2-1/2"]
[ECO "D23"]
[WhiteElo "2060"]
[BlackElo "2300"]
[Annotator "NA"]
[PlyCount "103"]
[EventDate "2019.10.18"]
[EventType "swiss"]
[EventCountry "RUS"]
[SourceTitle "playchess.com"]
[Source "ChessBase"]
[SourceQuality "1"]
[TimeControl "900+10"]

1. d4 {[%emt 0:00:00]} d5 {[%emt 0:00:00]} 2. c4 {[%emt 0:00:00]} dxc4 {[%emt 0:00:00]} 3. Nf3 {[%emt 0:00:00]} Nf6 {[%emt 0:00:03]} 4. g3 {[%emt 0:00:00]} c5 {[%emt 0:00:08]} 5. Bg2 {[%emt 0:00:33]} Nc6 {[%emt 0:00:34]} 6. Qa4 {[%emt 0:01:05]} cxd4 {[%emt 0:00:55]} 7. Nxd4 {[%emt 0:01:29]} Qxd4 {[%emt 0:00:20]} 8. Bxc6+ {[%emt 0:00:03]} Bd7 {[%emt 0:00:03]} 9. Bxd7+ {[%emt 0:00:40]} Qxd7 {[%emt 0:00:22]} 10. Qxd7+ {[%emt 0:02:28]} Nxd7 {[%emt 0:00:08]} 11. Nc3 {[%emt 0:00:05]} e6 {[%emt 0:00:37]} 12. O-O {[%emt 0:00:30]} a6 {[%emt 0:00:19]} 13. a4 {[%emt 0:00:10]} Bc5 {[%emt 0:01:37]} 14. Ne4 {[%emt 0:00:36]} Bb4 {[%emt 0:00:17]} 15. Rd1 {[%emt 0:00:08]} Ke7 {[%emt 0:00:08]} 16. a5 {[%emt 0:01:38]} f5 {[%emt 0:04:22]} 17. Nd2 {[%emt 0:02:56]} Rhc8 {[%emt 0:05:14]} 18. Ra4 {[%emt 0:00:17]} Bxd2 {[%emt 0:00:10]} 19. Bxd2 {[%emt 0:00:08]} b5 {[%emt 0:00:20]} 20. axb6 {[%emt 0:00:08]} Nxb6 {[%emt 0:00:02]} 21. Bg5+ {[%emt 0:01:02]} Ke8 {[%emt 0:00:13]} 22. Rb4 {[%emt 0:00:28]} Rc6 {[%emt 0:00:16]} 23. f3 {[%emt 0:00:57]} h6 {[%emt 0:00:12]} 24. Bc1 {[%emt 0:00:20]} Rd8 {[%emt 0:00:14]} 25. Rxd8+ {[%emt 0:00:03]} Kxd8 {[%emt 0:00:01]} 26. e4 {[%emt 0:00:09]} fxe4 {[%emt 0:01:22]} 27. fxe4 {[%emt 0:00:02]} Nd7 {[%emt 0:00:42]} 28. Be3 {[%emt 0:00:25]} Kc7 {[%emt 0:00:09]} 29. Kg2 {[%emt 0:00:45]} Kd6 {[%emt 0:00:06]} 30. Bf4+ {[%emt 0:00:55]} e5 {[%emt 0:00:04]} 31. Be3 {[%emt 0:00:02]} h5 {[%emt 0:00:12]} 32. h3 {[%emt 0:00:27]} g6 {[%emt 0:00:02]} 33. Kf3 {[%emt 0:00:26]} c3 {[%emt 0:00:10]} 34. bxc3 {[%emt 0:00:15]} Rxc3 {[%emt 0:00:01]} 35. Ke2 {[%emt 0:00:18]} Ra3 {[%emt 0:00:02]} 36. Rb2 {[%emt 0:00:13]} a5 {[%emt 0:00:08]} 37. Rd2+ {[%emt 0:00:04]} Ke6 {[%emt 0:00:02]} 38. Rc2 {[%emt 0:00:02]} Kd6 {[%emt 0:00:14]} 39. Rd2+ {[%emt 0:00:01]} Kc6 {[%emt 0:00:04]} 40. Rc2+ {[%emt 0:00:03]} Kd6 {[%emt 0:00:33]} 41. Rd2+ {[%emt 0:00:01]} Ke7 {[%emt 0:00:17]} 42. Rc2 {[%emt 0:00:20]} a4 {[%emt 0:00:09]} 43. Rc6 {[%emt 0:00:12]} Ra2+ {[%emt 0:00:04]} 44. Kf3 {[%emt 0:00:06]} Kf7 {[%emt 0:00:14]} 45. Rc7 {[%emt 0:00:05]} Ke8 {[%emt 0:00:03]} 46. Rc6 {[%emt 0:00:05]} Nf8 {[%emt 0:00:03]} 47. Bh6 {[%emt 0:00:46]} Ra3+ {[%emt 0:00:02]} 48. Kf2 {[%emt 0:00:02]} Ra2+ {[%emt 0:00:27]} 49. Kf3 {[%emt 0:00:01]} Nd7 {[%emt 0:00:08]} 50. Rxg6 {[%emt 0:00:09]} a3 {[%emt 0:00:03]} 51. Bg5 {[%emt 0:00:16]} Ra1 {[%emt 0:00:17]} 52. Re6+ {[%emt 0:00:08]} 1/2-1/2

[Event "RUS-chT Women Rapid 2019"]
[Site "Sochi"]
[Date "2019.10.18"]
[Round "3.4"]
[White "Styazhkina, Anna"]
[Black "Usacheva, Glafira"]
[Result "1-0"]
[ECO "B53"]
[WhiteElo "2280"]
[BlackElo "1905"]
[Annotator "NA"]
[PlyCount "89"]
[EventDate "2019.10.18"]
[EventType "swiss"]
[EventCountry "RUS"]
[SourceTitle "playchess.com"]
[Source "ChessBase"]
[SourceQuality "1"]
[TimeControl "900+10"]

1. e4 {[%emt 0:00:00]} c5 {[%emt 0:00:00]} 2. Nf3 {[%emt 0:00:00]} d6 {[%emt 0:00:00]} 3. d4 {[%emt 0:00:00]} cxd4 {[%emt 0:00:00]} 4. Qxd4 {[%emt 0:00:02]} Nc6 {[%emt 0:00:05]} 5. Bb5 {[%emt 0:00:04]} Bd7 {[%emt 0:00:07]} 6. Qd3 {[%emt 0:00:04]} h6 {[%emt 0:00:55]} 7. c4 {[%emt 0:00:06]} a6 {[%emt 0:00:50]} 8. Bxc6 {[%emt 0:00:03]} Bxc6 {[%emt 0:00:02]} 9. Nc3 {[%emt 0:00:07]} e5 {[%emt 0:02:48]} 10. O-O {[%emt 0:01:56]} Nf6 {[%emt 0:00:10]} 11. Rd1 {[%emt 0:01:17]} Be7 {[%emt 0:01:07]} 12. b4 {[%emt 0:01:27]} O-O {[%emt 0:03:05]} 13. a4 {[%emt 0:00:37]} Bd7 {[%emt 0:02:41]} 14. h3 {[%emt 0:00:43]} Be6 {[%emt 0:00:22]} 15. Be3 {[%emt 0:00:59]} Rc8 {[%emt 0:00:49]} 16. Nd2 {[%emt 0:01:02]} Qc7 {[%emt 0:00:33]} 17. Rac1 {[%emt 0:00:49]} Qd7 {[%emt 0:01:31]} 18. a5 {[%emt 0:00:45]} Rfe8 {[%emt 0:00:35]} 19. Ne2 {[%emt 0:04:31]} Nh7 {[%emt 0:00:55]} 20. Ng3 {[%emt 0:01:53]} Bf8 {[%emt 0:00:42]} 21. Bb6 {[%emt 0:00:55]} g6 {[%emt 0:00:41]} 22. Nf3 {[%emt 0:00:45]} Qe7 {[%emt 0:00:22]} 23. b5 {[%emt 0:00:14]} Ng5 {[%emt 0:00:10]} 24. Nd2 {[%emt 0:00:17]} Qf6 {[%emt 0:00:15]} 25. Qe3 {[%emt 0:00:12]} Qe7 {[%emt 0:00:13]} 26. bxa6 {[%emt 0:00:12]} bxa6 {[%emt 0:00:02]} 27. Qd3 {[%emt 0:00:13]} Rc6 {[%emt 0:00:03]} 28. Rc3 {[%emt 0:00:12]} Rec8 {[%emt 0:00:01]} 29. Rdc1 {[%emt 0:00:01]} h5 {[%emt 0:00:16]} 30. Ngf1 {[%emt 0:00:06]} Bh6 {[%emt 0:00:09]} 31. Ne3 {[%emt 0:00:05]} Re8 {[%emt 0:00:28]} 32. Nd5 {[%emt 0:00:04]} Bxd5 {[%emt 0:00:03]} 33. cxd5 {[%emt 0:00:01]} Rxc3 {[%emt 0:00:09]} 34. Rxc3 {[%emt 0:00:01]} Qf6 {[%emt 0:00:18]} 35. Rc7 {[%emt 0:00:39]} h4 {[%emt 0:00:08]} 36. Be3 {[%emt 0:00:17]} Qd8 {[%emt 0:00:09]} 37. Qc2 {[%emt 0:00:05]} Bg7 {[%emt 0:00:12]} 38. Qc6 {[%emt 0:00:10]} Nh7 {[%emt 0:00:13]} 39. Qb7 {[%emt 0:00:08]} Qf6 {[%emt 0:00:10]} 40. Nf3 {[%emt 0:00:04]} Bf8 {[%emt 0:00:09]} 41. Qxa6 {[%emt 0:00:06]} Be7 {[%emt 0:00:10]} 42. Qc6 {[%emt 0:00:07]} Rb8 {[%emt 0:00:10]} 43. Rc8+ {[%emt 0:00:05]} Rxc8 {[%emt 0:00:01]} 44. Qxc8+ {[%emt 0:00:01]} Kg7 {[%emt 0:00:01]} 45. a6 {[%emt 0:00:01]} 1-0

[Event "RUS-chT Women Rapid 2019"]
[Site "Sochi"]
[Date "2019.10.18"]
[Round "3.5"]
[White "Voit, Daria"]
[Black "Gunina, Valentina"]
[Result "0-1"]
[ECO "E10"]
[WhiteElo "2336"]
[BlackElo "2509"]
[Annotator "ChessBase"]
[PlyCount "96"]
[EventDate "2019.10.18"]
[EventType "swiss"]
[EventCountry "RUS"]
[SourceTitle "playchess.com"]
[Source "ChessBase"]
[SourceQuality "1"]
[TimeControl "900+10"]

1. d4 {[%emt 0:00:00]} Nf6 {[%emt 0:00:00]} 2. Nf3 {[%emt 0:00:00]} e6 {[%emt 0:00:00]} 3. c4 {[%emt 0:00:00]} c5 {[%emt 0:00:00]} 4. d5 {[%emt 0:00:00]} b5 {[%emt 0:00:00]} 5. Bg5 {[%emt 0:00:15]} exd5 {[%emt 0:00:04]} 6. cxd5 {[%emt 0:00:27]} h6 {[%emt 0:00:02]} 7. Bxf6 {[%emt 0:00:42]} Qxf6 {[%emt 0:00:01]} 8. Qc2 {[%emt 0:00:01]} Be7 {[%emt 0:00:04]} 9. e4 {[%emt 0:00:05]} Qb6 {[%emt 0:00:02]} 10. a4 {[%emt 0:00:33]} b4 {[%emt 0:00:03]} 11. Nbd2 {[%emt 0:00:04]} d6 {[%emt 0:00:02]} 12. Bb5+ {[%emt 0:00:36]} Bd7 {[%emt 0:00:10]} 13. Nc4 {[%emt 0:00:11]} Qc7 {[%emt 0:00:19]} 14. e5 {[%emt 0:01:44]} O-O {[%emt 0:00:42]} 15. Bxd7 {[%emt 0:03:19]} Nxd7 {[%emt 0:00:04]} 16. Rd1 {[%emt 0:00:01]} Nb6 {[%emt 0:01:14]} 17. exd6 {[%emt 0:00:20]} Bxd6 {[%emt 0:00:02]} 18. O-O {[%emt 0:00:02]} Rfe8 {[%emt 0:00:39]} 19. g3 {[%emt 0:00:20]} Nd7 {[%emt 0:01:30]} 20. b3 {[%emt 0:01:40]} Nf6 {[%emt 0:00:08]} 21. Rfe1 {[%emt 0:00:39]} Rad8 {[%emt 0:00:17]} 22. Rxe8+ {[%emt 0:00:17]} Rxe8 {[%emt 0:00:01]} 23. Qf5 {[%emt 0:00:20]} Ne4 {[%emt 0:00:34]} 24. Re1 {[%emt 0:00:54]} g6 {[%emt 0:00:01]} 25. Rxe4 {[%emt 0:02:02]} gxf5 {[%emt 0:00:02]} 26. Rxe8+ {[%emt 0:00:02]} Kg7 {[%emt 0:02:00]} 27. Nfe5 {[%emt 0:00:06]} Bf8 {[%emt 0:01:53]} 28. f4 {[%emt 0:02:01]} f6 {[%emt 0:01:00]} 29. Nc6 {[%emt 0:00:09]} Qf7 {[%emt 0:00:20]} 30. Rd8 {[%emt 0:00:08]} Qh5 {[%emt 0:00:07]} 31. Rd7+ {[%emt 0:01:58]} Kg6 {[%emt 0:00:24]} 32. N6a5 {[%emt 0:00:30]} Qd1+ {[%emt 0:00:06]} 33. Kg2 {[%emt 0:00:00]} Qe2+ {[%emt 0:00:08]} 34. Kg1 {[%emt 0:00:05]} Kh5 {[%emt 0:00:05]} 35. h3 {[%emt 0:00:22]} Qf3 {[%emt 0:00:13]} 36. Rf7 {[%emt 0:00:12]} Qxg3+ {[%emt 0:00:03]} 37. Kf1 {[%emt 0:00:01]} Qxf4+ {[%emt 0:00:10]} 38. Ke2 {[%emt 0:00:06]} Qe4+ {[%emt 0:00:02]} 39. Kf2 {[%emt 0:00:06]} Bd6 {[%emt 0:01:06]} 40. Nxd6 {[%emt 0:00:48]} Qf4+ {[%emt 0:00:01]} 41. Ke2 {[%emt 0:00:17]} Qxd6 {[%emt 0:00:02]} 42. Nc4 {[%emt 0:00:03]} Qxd5 {[%emt 0:00:01]} 43. Rxf6 {[%emt 0:00:03]} Qe4+ {[%emt 0:00:03]} 44. Kf1 {[%emt 0:00:03]} Qd3+ {[%emt 0:00:06]} 45. Kg2 {[%emt 0:00:04]} Qc2+ {[%emt 0:00:15]} 46. Kf1 {[%emt 0:00:11]} Kg5 {[%emt 0:00:27]} 47. Rc6 {[%emt 0:00:08]} Qd3+ {[%emt 0:00:09]} 48. Kf2 {[%emt 0:00:07]} Kf4 {[%emt 0:00:12]} 0-1